bitfinex-derivatives/quotes_SOLF0:USTF0_20250212
["timestamp","ask_amount","ask_price","bid_price","bid_amount"]
[1739363576875,8.89476447,197.14,197.07,8.89476447]
[1739363577373,0.03198042,197.12,197.07,8.89476447]
[1739363578070,0.03198042,197.12,197.09,5.0735]
[1739363579673,8.92674489,197.12,197.09,5.0735]
[1739363580470,13.99974489,197.12,197.07,13.96866447]
[1739363580676,13.99974489,197.12,197.07,5.0739]
[1739363581075,5.0732,197.11,197.07,5.0739]
[1739363581270,8.89476447,197.1,197.05,5.0744]
[1739363582181,8.89476447,197.1,197.03,8.89476447]
[1739363582476,13.96806447,197.1,197.06,5.0743]
[1739363584076,13.96806447,197.1,197.05,8.89476447]
[1739363584371,1.5177,197.11,197.05,8.89476447]
[1739363584677,0.03198042,197.12,197.07,8.89476447]
[1739363584971,1.6109,197.16,197.11,8.89476447]
[1739363585176,8.89476447,197.2,197.13,8.89476447]
[1739363585380,0.03466812,197.15,197.14,5.0723]
[1739363585577,13.96556447,197.2,197.13,8.89476447]
[1739363585770,0.03448683,197.16,197.13,8.89476447]
[1739363586978,0.03448683,197.16,197.15,5.0718]
[1739363587479,8.9292513,197.16,197.13,5.0723]
[1739363588477,8.9292513,197.16,197.12,5.0728]
[1739363588678,8.89476447,197.16,197.09,8.89476447]
[1739363588873,8.93366432,197.16,197.09,8.89476447]
[1739363589680,8.89476447,197.14,197.11,5.073]
[1739363589880,5.0721,197.15,197.02,6.824392]
[1739363589881,8.89476447,197.12,197.05,8.89476447]
[1739363590284,13.96766447,197.12,197.07,5.074]
[1739363590483,8.89476447,197.1,197.07,5.074]
[1739363594484,8.89476447,197.1,197.06,5.0743]
[1739363594980,8.92738927,197.1,197.06,5.0743]
[1739363595180,8.89476447,197.08,197.06,5.0743]
[1739363596086,14.00068927,197.1,197.06,5.0743]
[1739363598679,5.0736,197.09,197.05,5.0746]
[1739363598983,5.0736,197.09,197.05,8.89476447]
[1739363600088,5.0736,197.09,197.06,5.0743]
[1739363600284,14.00078927,197.1,197.06,5.0743]
[1739363601581,14.00078927,197.1,197.07,5.074]
[1739363602686,0.0326248,197.1,197.08,5.0738]
[1739363602883,0.0326248,197.1,197.07,8.89476447]
[1739363603484,0.0326248,197.1,197.09,8.89476447]
[1739363603684,0.0326248,197.1,197.09,13.96836447]
[1739363606387,8.89476447,197.2,197.09,8.89476447]
[1739363606587,8.89476447,197.2,197.14,8.89476447]
[1739363607592,0.03499195,197.19,197.17,5.0715]
[1739363607990,8.89476447,197.22,197.17,5.0715]
[1739363608191,8.89476447,197.22,197.16,8.89476447]
[1739363608192,0.03271041,197.2,197.18,5.0712]
[1739363609787,0.03271041,197.2,197.18,8.89476447]
[1739363609994,0.03271041,197.2,197.19,5.071]
[1739363617896,1.041e-05,197.2,197.19,5.071]
[1739363625500,1.041e-05,197.2,197.17,5.0714]
[1739363625696,1.041e-05,197.2,197.18,8.89476447]
[1739363626296,1.041e-05,197.2,197.19,5.071]
[1739363633003,8.89477488,197.2,197.16,0.03517601]
[1739363635907,8.89477488,197.2,197.16,5.10687601]
[1739363636609,8.89477488,197.2,197.14,5.072]
[1739363636610,8.89476447,197.18,197.14,5.072]
[1739363636808,8.89476447,197.16,197.14,5.072]
[1739363637202,8.89476447,197.16,197.08,8.89476447]
[1739363637404,8.89476447,197.14,197.12,5.0725]
[1739363638302,8.89476447,197.14,197.13,5.0725]
[1739363638508,1.65591789,197.15,197.13,5.0725]
[1739363641308,0.03741789,197.15,197.14,5.0723]
[1739363646310,0.03741789,197.15,197.14,13.96706447]
[1739363649317,0.03741789,197.15,197.14,5.0723]
[1739363652112,0.03741789,197.15,197.11,0.03609954]
[1739363652314,8.89476447,197.13,197.07,6.824392]
[1739363652512,1.56181789,197.15,197.04,8.89476447]
[1739363652513,8.89476447,197.11,197.04,8.89476447]
[1739363653615,0.03542751,197.09,197.04,8.89476447]
[1739363654019,0.03542751,197.09,197.07,5.0738]
[1739363654720,0.03542751,197.09,197.04,8.89476447]
[1739363655318,0.03542751,197.09,197.08,5.0738]
[1739363660721,0.03542751,197.09,197.08,13.96856447]
[1739363661426,5.0715,197.18,197.08,8.89476447]
[1739363661621,5.0715,197.18,197.14,8.89476447]
[1739363662425,5.0715,197.18,197.13,5.0725]
[1739363662625,5.10901458,197.18,197.14,0.0371523]
[1739363664026,5.10901458,197.18,197.14,5.1091523]
[1739363664326,0.03751458,197.18,197.14,8.93191677]
[1739363665023,0.03751458,197.18,197.15,5.0718]
[1739363666621,0.03751458,197.18,197.16,8.89476447]
[1739363666827,0.03751458,197.18,197.17,5.0715]
[1739363682540,0.03751458,197.18,197.14,8.93191677]
[1739363682746,8.89476447,197.17,197.14,0.0371523]
[1739363683140,8.89476447,197.15,197.14,0.0371523]
[1739363683642,13.96676447,197.15,197.14,0.0371523]
[1739363684747,8.89476447,197.15,197.09,5.0733]
[1739363684940,8.89476447,197.15,197.06,36.19233249]
[1739363684941,8.89476447,197.12,197.06,36.19233249]
[1739363685846,0.0360103,197.11,197.06,8.89476447]
[1739363686045,0.0360103,197.11,197.08,5.0738]
[1739363693049,0.0360103,197.11,197.09,5.0736]
[1739363704762,0.0360103,197.11,197.1,5.0733]
[1739363705059,0.0360103,197.11,197.1,13.96806447]
[1739363706756,5.071,197.19,197.14,5.072]
[1739363706958,8.89476447,197.2,197.14,8.89476447]
[1739363707458,13.96556447,197.2,197.15,5.0718]
[1739363707857,0.03485146,197.19,197.16,0.03532538]
[1739363709560,0.03485146,197.19,197.16,5.10712538]
[1739363715866,8.89476447,197.18,197.16,5.10712538]
[1739363716870,8.89476447,197.18,197.16,0.03532538]
[1739363718473,13.96606447,197.18,197.16,0.03532538]
[1739363727375,8.89476447,197.18,197.16,0.03532538]
[1739363727577,5.0715,197.17,197.16,0.03532538]
[1739363728272,8.89476447,197.18,197.08,8.89476447]
[1739363728475,8.89476447,197.13,197.08,8.89476447]
[1739363729277,8.89476447,197.15,197.08,8.89476447]
[1739363729476,0.03767978,197.12,197.09,5.0735]
[1739363731074,0.03767978,197.12,197.1,8.89476447]
[1739363733176,0.03767978,197.12,197.11,5.073]
[1739363737082,5.0734,197.1,197.05,5.0744]
[1739363737281,13.96816447,197.1,197.05,5.0744]
[1739363739795,8.93244425,197.12,197.06,8.89476447]
[1739363739992,5.073,197.11,197.08,8.89476447]
[1739363740291,5.11008228,197.11,197.08,8.89476447]
[1739363740586,0.03708228,197.11,197.1,8.89476447]
[1739363740986,8.228e-05,197.11,197.1,13.96806447]
[1739363741187,8.89476447,197.22,197.1,8.89476447]
[1739363741387,8.89476447,197.22,197.15,8.89476447]
[1739363741591,8.89476447,197.2,197.16,5.0717]
[1739363742195,8.93081075,197.2,197.16,5.10408125]
[1739363742593,8.93081075,197.2,197.16,0.03238125]
[1739363743095,8.89476447,197.18,197.16,0.03238125]
[1739363743589,5.0721,197.15,197.1,5.0731]
[1739363743794,13.96686447,197.15,197.1,5.0731]
[1739363744694,0.03503624,197.14,197.1,5.0731]
[1739363746794,0.03503624,197.14,197.11,5.073]
[1739363749295,0.03503624,197.14,197.13,13.96726447]
[1739363751096,3.624e-05,197.14,197.13,13.96726447]
[1739363762607,3.624e-05,197.14,197.13,5.0725]
[1739363766814,3.624e-05,197.14,197.12,0.03289768]
[1739363767112,8.89476447,197.13,197.12,0.03289768]
[1739363767719,5.0731,197.11,197.07,5.0741]
[1739363767917,8.89476447,197.09,197.03,8.89476447]
[1739363768510,8.89476447,197.09,197.05,5.0745]
[1739363768707,8.92733953,197.09,197.05,5.0745]
[1739363768914,14.00093953,197.09,197.05,5.0745]
[1739363770718,0.03257506,197.09,197.05,13.96926447]
[1739363771322,0.03257506,197.09,197.06,5.0741]
[1739363773519,0.03257506,197.09,197.05,8.89476447]
[1739363773818,14.00103953,197.09,197.04,5.0746]
[1739363774421,14.00103953,197.09,197.05,5.0745]
[1739363777821,3.0463,197.08,197.05,5.0745]
[1739363778019,8.1202,197.08,197.03,5.0751]
[1739363780723,8.89476447,197.07,197.04,5.0748]
[1739363782626,8.89476447,197.07,196.94,6.824392]
[1739363782627,8.89476447,197.05,196.97,8.89476447]
[1739363782828,8.89476447,197.03,196.97,8.89476447]
[1739363783027,8.9305323,197.03,196.97,8.89476447]
[1739363783229,8.9305323,197.03,196.99,5.0759]
[1739363784227,8.89476447,197.01,196.99,5.0759]
[1739363788531,8.89476447,197.01,196.99,2.6364]
[1739363788732,15.55376447,197.01,196.97,5.0766]
[1739363789032,8.89476447,196.99,196.97,5.0766]
[1739363790135,8.89476447,196.99,196.93,8.89476447]
[1739363790430,8.89476447,196.99,196.96,5.0767]
[1739363793633,8.89476447,196.99,196.91,8.89476447]
[1739363793634,8.89476447,196.97,196.94,5.0772]
[1739363794034,8.92888819,196.97,196.94,5.0772]
[1739363796030,8.92888819,196.97,196.91,8.89476447]
[1739363796234,0.03412372,196.97,196.93,8.89476447]
[1739363797037,0.03412372,196.97,196.96,5.0769]
[1739363800339,2.372e-05,196.97,196.96,5.0769]
[1739363800835,2.372e-05,196.97,196.96,6.6429]
[1739363802038,8.89476447,197.07,196.96,1.566]
[1739363802240,8.89476447,197.09,197.03,8.89476447]
[1739363803138,8.89476447,197.09,197.06,5.0743]
[1739363803339,8.89476447,197.07,197.04,0.03305268]
[1739363803536,8.89476447,197.05,197.04,0.03305268]
[1739363806345,13.96886447,197.07,197.04,0.03305268]
[1739363806837,8.89476447,197.05,197.04,0.03305268]
[1739363809639,13.96936447,197.05,196.97,8.89476447]
[1739363809844,8.89476447,197.03,196.97,8.89476447]
[1739363810938,8.89476447,196.99,196.97,5.0765]
[1739363811550,8.89476447,196.99,196.93,8.89476447]
[1739363811748,8.89476447,196.99,196.95,5.0769]
[1739363812039,8.89476447,196.97,196.95,5.0769]
[1739363812242,8.89476447,196.97,196.93,5.0775]
[1739363812448,8.89476447,196.95,196.93,5.0775]
[1739363813350,8.89476447,196.95,196.92,5.0779]
[1739363815346,8.89476447,196.95,196.89,10.52086447]
[1739363815547,8.89476447,196.95,196.91,5.0781]
[1739363816047,13.97196447,196.95,196.91,5.0781]
[1739363816651,8.89476447,196.93,196.91,5.0781]
[1739363817150,8.89476447,196.93,196.89,5.0786]
[1739363817349,8.89476447,196.91,196.89,5.0786]
[1739363818955,8.89476447,196.91,196.88,6.91039]
[1739363819155,8.89476447,196.89,196.88,6.91039]
[1739363819653,8.89476447,196.91,196.88,6.91039]
[1739363820050,8.89476447,196.91,196.88,11.98929]
[1739363820250,8.89476447,196.91,196.88,6.91039]
[1739363820853,8.92712823,196.93,196.88,6.91039]
[1739363821855,8.92712823,196.93,196.91,5.0782]
[1739363822949,0.03236376,196.93,196.92,5.0779]
[1739363829155,8.89476447,197.01,196.91,8.89476447]
[1739363829354,8.89476447,197.03,196.96,8.89476447]
[1739363830057,8.89476447,197.03,197.0,5.0758]
[1739363830460,8.9329242,197.03,197.0,5.11338386]
[1739363831657,14.0080242,197.03,197.0,5.11338386]
[1739363831851,8.89476447,197.01,197.0,5.11338386]
[1739363832357,8.89476447,197.01,197.0,0.03758386]
[1739363833755,13.97036447,197.01,197.0,0.03758386]
[1739363833954,8.89476447,197.01,196.96,5.0767]
[1739363834156,8.89476447,196.99,196.96,5.0767]
[1739363835457,8.89476447,196.99,196.97,5.0766]
[1739363835658,8.89476447,197.03,196.98,8.89476447]
[1739363835960,0.03901621,197.0,196.98,8.89476447]
[1739363836764,0.03901621,197.0,196.99,5.0761]
[1739363849573,83.75441165,197.25,196.99,13.91594534]
[1739363849778,13.91594534,197.18,197.07,13.91594534]
[1739363849975,0.91907816,197.17,197.07,13.91594534]
[1739363850572,13.91594534,197.15,197.04,13.91594534]
[1739363850773,0.03847889,197.14,197.1,0.034244]
[1739363850978,13.91594534,197.12,197.1,0.034244]
[1739363851279,8.1693,197.11,196.98,13.91594534]
[1739363852377,0.03837361,197.06,197.05,5.0746]
[1739363852575,5.0734,197.1,197.05,5.0746]
[1739363852774,0.03849606,197.07,197.05,5.0746]
[1739363862478,0.03849606,197.07,197.06,5.0743]
[1739363871992,5.0747,197.05,197.01,5.0755]
[1739363872187,13.97896843,197.05,197.01,5.0755]
[1739363877084,13.97956843,197.03,196.99,5.0761]
[1739363877293,8.90426843,197.01,196.94,8.90426843]
[1739363878394,8.90426843,196.99,196.94,8.90426843]
[1739363878796,0.03447026,196.98,196.94,8.90426843]
[1739363879196,0.03447026,196.98,196.95,5.0771]
[1739363879906,8.90426843,196.97,196.93,6.824392]
[1739363880092,8.90426843,196.95,196.93,6.824392]
[1739363880291,8.90426843,196.95,196.92,20.47317602]
[1739363880292,8.90426843,196.95,196.88,6.91039]
[1739363880492,8.90426843,196.93,196.89,5.0787]
[1739363880695,8.93808965,196.93,196.89,5.0787]
[1739363883199,8.93808965,196.93,196.88,6.91039]
[1739363883399,14.01588965,196.93,196.88,6.91039]
[1739363883692,8.90426843,196.91,196.88,6.91039]
[1739363883899,5.0785,196.9,196.88,6.91039]
[1739363884100,8.90426843,196.89,196.88,6.91039]
[1739363884401,13.98296843,196.89,196.88,6.91039]
[1739363886392,13.98296843,196.89,196.88,4.47019]
[1739363886592,8.90426843,196.89,196.82,5.0803]
[1739363886897,8.90426843,196.86,196.82,5.0803]
[1739363887698,8.90426843,196.86,196.83,5.0803]
[1739363888301,8.90426843,196.86,196.84,5.0799]
[1739363888702,0.03692885,196.87,196.81,8.90426843]
[1739363888903,0.03692885,196.87,196.85,5.0797]
[1739363891905,0.03692885,196.87,196.86,5.0795]
[1739363893003,5.0796,196.86,196.79,8.90426843]
[1739363893210,8.90426843,196.83,196.77,8.90426843]
[1739363893706,0.03260831,196.82,196.81,5.0806]
[1739363894704,0.03260831,196.82,196.76,1.4649]
[1739363895013,8.90426843,196.81,196.75,10.37136843]
[1739363895308,13.98636843,196.76,196.69,5.0837]
[1739363895612,8.90426843,196.75,196.69,5.0837]
[1739363895809,0.03765359,196.74,196.67,15.72866043]
[1739363896107,0.03765359,196.74,196.7,5.0836]
[1739363900314,0.03765359,196.74,196.69,8.90426843]
[1739363900610,0.03765359,196.74,196.71,5.0833]
[1739363900807,0.03765359,196.74,196.69,8.90426843]
[1739363901012,0.03765359,196.74,196.73,13.98706843]
[1739363901204,8.90426843,196.79,196.73,8.90426843]
[1739363901410,8.90426843,196.79,196.65,3.097]
[1739363901411,8.90426843,196.83,196.77,8.90426843]
[1739363901714,8.90426843,196.85,196.79,8.90426843]
[1739363902006,8.90426843,196.87,196.81,8.90426843]
[1739363902402,0.03528251,196.86,196.83,8.90426843]
[1739363902607,8.90426843,196.89,196.83,8.90426843]
[1739363902808,8.90426843,196.89,196.83,8.94041022]
[1739363903009,0.03411287,196.86,196.83,8.94041022]
[1739363903814,0.03411287,196.86,196.83,0.03614179]
[1739363904015,0.03411287,196.86,196.84,5.08]
[1739363904215,0.03411287,196.86,196.83,0.03614179]
[1739363906013,0.03411287,196.86,196.83,5.11634179]
[1739363907316,0.03411287,196.86,196.83,0.03614179]
[1739363910118,5.11371287,196.86,196.83,0.03614179]
[1739363910421,0.03411287,196.86,196.83,5.11624179]
[1739363910920,0.03411287,196.86,196.84,5.0799]
[1739363912121,0.03411287,196.86,196.85,5.0797]
[1739363924235,0.03411287,196.86,196.85,13.99994643]
[1739363925836,0.03411287,196.86,196.85,5.0797]
[1739363929742,0.03411287,196.86,196.84,5.08]
[1739363931839,0.03411287,196.86,196.83,0.03614179]
[1739363932046,0.03411287,196.86,196.85,5.0797]
[1739363934849,0.03411287,196.86,196.83,0.03614179]
[1739363935043,0.03411287,196.86,196.83,5.11614179]
[1739363936547,0.03411287,196.86,196.83,0.03614179]
[1739363936750,0.03411287,196.86,196.84,5.08]
[1739363938747,0.03411287,196.86,196.83,0.03614179]
[1739363938948,0.03411287,196.86,196.85,5.0797]
[1739363941150,13.93870385,196.97,196.85,5.0797]
[1739363941151,15.54890385,196.97,196.9,5.0782]
[1739363941650,5.077,196.96,196.91,5.0781]
[1739363941846,2.9723,196.98,196.88,13.93870385]
[1739363942051,11.29277495,197.02,196.91,13.93870385]
[1739363942250,0.03636426,196.95,196.91,13.97587964]
[1739363942648,0.03636426,196.95,196.91,0.03717579]
[1739363943655,0.03636426,196.95,196.94,5.0774]
[1739363946755,0.03636426,196.95,196.91,0.03717579]
[1739363946956,13.93870385,196.94,196.91,0.03717579]
[1739363948158,19.01620385,196.94,196.91,0.03717579]
[1739363949060,13.93870385,196.94,196.91,0.03717579]
[1739363949258,5.0777,196.93,196.91,0.03717579]
[1739363956465,13.9937529,196.94,196.91,0.03717579]
[1739363957566,5.0778,196.93,196.91,0.03717579]
[1739363957764,8.9162529,196.92,196.91,0.03717579]
[1739363964468,8.9162529,196.94,196.91,0.03717579]
[1739363964767,8.9162529,196.94,196.91,5.11517579]
[1739363965068,0.03636426,196.95,196.94,5.0774]
[1739363968364,0.03636426,196.95,196.92,5.0778]
[1739363968567,8.9162529,196.93,196.92,5.0778]
[1739363973674,8.9162529,196.93,196.91,5.11537579]
[1739363979575,8.9162529,196.93,196.91,0.03717579]
[1739363979776,13.9939529,196.93,196.91,0.03717579]
[1739363982281,5.0779,196.92,196.91,0.03717579]
[1739363985777,8.9162529,196.93,196.91,0.03717579]
[1739363985976,13.9940529,196.93,196.91,0.03717579]
[1739363986677,5.0775,196.94,196.91,0.03717579]
[1739363987682,5.0775,196.94,196.91,5.11537579]
[1739363988278,8.9162529,196.93,196.91,5.11537579]
[1739363990382,8.9162529,196.93,196.91,0.03717579]
[1739363990582,8.9162529,196.93,196.92,5.0779]
[1739363991683,8.9162529,196.93,196.91,0.03717579]
[1739363995885,5.0779,196.92,196.91,0.03717579]
[1739363998988,13.9939529,196.93,196.91,0.03717579]
[1739364001589,14.03001716,196.95,196.91,5.11517579]
[1739364002294,14.03001716,196.95,196.92,5.0779]
[1739364002993,8.95261716,196.95,196.93,5.0777]
[1739364004597,8.95261716,196.95,196.91,0.03717579]
[1739364004796,8.9162529,196.93,196.91,0.03717579]
[1739364007297,5.0775,196.94,196.91,0.03717579]
[1739364008203,8.9162529,196.93,196.91,0.03717579]
[1739364009403,8.95261716,196.95,196.91,0.03717579]
[1739364009604,0.03636426,196.95,196.91,8.95342869]
[1739364010105,0.03636426,196.95,196.93,8.9162529]
[1739364011008,0.03636426,196.95,196.94,5.0774]
[1739364012017,49.3713545,197.04,196.98,5.0764]
[1739364012018,8.9162529,197.03,196.98,5.0764]
[1739364012308,8.9162529,197.03,196.97,8.9162529]
[1739364012707,8.9162529,197.03,197.0,5.0757]
[1739364013210,8.95388931,197.03,197.0,5.11036298]
[1739364016216,8.95388931,197.03,197.0,0.03466298]
[1739364016416,8.9162529,197.01,197.0,0.03466298]
[1739364016816,8.9162529,197.01,196.91,8.9162529]
[1739364017029,8.9162529,196.96,196.93,5.0776]
[1739364018014,8.95069392,196.96,196.93,5.11125565]
[1739364018908,8.95069392,196.96,196.93,0.03365565]
[1739364018909,8.9162529,196.94,196.93,0.03365565]
[1739364020816,13.9936529,196.94,196.93,0.03365565]
[1739364024316,14.02779392,196.96,196.93,0.03365565]
[1739364029119,8.95069392,196.96,196.93,0.03365565]
[1739364029322,8.95069392,196.96,196.93,5.11125565]
[1739364031119,0.03444102,196.96,196.93,5.11125565]
[1739364032226,8.95069392,196.96,196.93,5.11125565]
[1739364034523,0.03444102,196.96,196.93,5.11125565]
[1739364036629,0.03444102,196.96,196.94,5.0774]
[1739364037629,0.03444102,196.96,196.95,5.0772]
[1739364038033,0.03444102,196.96,196.95,13.9934529]
[1739364038231,5.0755,197.02,196.98,5.0763]
[1739364038724,13.9917529,197.02,196.99,5.0761]
[1739364039127,13.9917529,197.02,196.95,8.9162529]
[1739364039326,14.02978693,197.02,196.99,0.03806055]
[1739364039932,8.9162529,197.0,196.99,0.03806055]
[1739364041129,13.9921529,197.0,196.99,0.03806055]
[1739364041332,8.95428693,197.02,196.99,0.03806055]
[1739364041729,0.03803403,197.02,196.99,0.03806055]
[1739364042333,0.03803403,197.02,197.0,5.0758]
[1739364042832,0.03803403,197.02,196.99,8.95431345]
[1739364043031,0.03803403,197.02,197.01,5.0756]
[1739364048038,8.95428693,197.02,196.99,5.11396055]
[1739364048237,8.9162529,197.0,196.99,0.03806055]
[1739364049442,13.9921529,197.0,196.99,0.03806055]
[1739364059047,8.95428693,197.02,196.99,0.03806055]
[1739364059347,14.02978693,197.02,196.99,0.03806055]
[1739364060041,0.03803403,197.02,197.0,5.0757]
[1739364060247,0.03803403,197.02,196.99,0.03806055]
[1739364060947,8.95428693,197.02,197.0,5.0759]
[1739364061148,8.95428693,197.02,196.99,0.03806055]
[1739364061547,0.03803403,197.02,196.99,0.03806055]
[1739364061744,8.9162529,197.11,197.01,8.9162529]
[1739364061950,8.9162529,197.11,197.05,8.9162529]
[1739364062955,0.03352651,197.1,197.06,0.03713896]
[1739364063250,0.03352651,197.1,197.06,5.11133896]
[1739364063551,0.03352651,197.1,197.07,13.9902529]
[1739364063952,0.03352651,197.1,197.07,8.9162529]
[1739364064156,0.03352651,197.1,197.09,8.9162529]
[1739364064555,0.03352651,197.1,197.09,13.9898529]
[1739364064759,0.03352651,197.1,197.09,5.0736]
[1739364066349,0.03352651,197.1,197.06,0.03713896]
[1739364067750,8.9162529,197.09,197.06,0.03713896]
[1739364068154,5.10682651,197.1,197.06,0.03713896]
[1739364068756,5.0739,197.08,197.06,0.03713896]
[1739364068955,0.03352651,197.1,197.06,0.03713896]
[1739364069155,0.03352651,197.1,197.07,8.9162529]
[1739364070358,0.03352651,197.1,197.09,8.9162529]
[1739364071154,0.03352651,197.1,197.09,13.9898529]
[1739364073660,5.0718,197.16,197.11,5.0728]
[1739364073857,8.9162529,197.15,197.11,5.0728]
[1739364074356,8.9162529,197.13,197.11,5.0728]
[1739364075861,13.9888529,197.13,197.1,0.03621014]
[1739364077956,13.9892529,197.11,197.1,0.03621014]
[1739364080259,5.073,197.11,197.1,0.03621014]
[1739364081552,5.0729,197.12,197.1,0.03621014]
[1739364083458,8.9162529,197.13,197.1,0.03621014]
[1739364083660,5.10755447,197.14,197.1,5.10941014]
[1739364084966,0.03525447,197.14,197.1,0.03621014]
[1739364085667,0.03525447,197.14,197.11,5.073]
[1739364087668,0.03525447,197.14,197.1,0.03621014]
[1739364087867,8.9162529,197.11,197.1,0.03621014]
[1739364088464,13.9892529,197.11,197.1,0.03621014]
[1739364090672,5.0742,197.07,197.03,5.0749]
[1739364090872,8.9162529,197.04,196.99,8.9162529]
[1739364091065,8.9162529,197.04,196.97,10.4626529]
[1739364091873,0.03589255,197.02,196.99,0.03660223]
[1739364092673,8.95214545,197.02,196.99,0.03660223]
[1739364095671,8.9162529,197.0,196.99,0.03660223]
[1739364097577,13.9921529,197.0,196.99,0.03660223]
[1739364099876,13.9921529,197.0,196.87,8.9162529]
[1739364099877,8.9162529,197.0,196.87,8.9162529]
[1739364100074,8.9162529,196.94,196.87,8.9162529]
[1739364100879,0.03753071,196.92,196.89,5.11200254]
[1739364101181,8.95378361,196.92,196.89,0.03330254]
[1739364101479,8.9162529,196.9,196.89,0.03330254]
[1739364103780,5.0785,196.9,196.89,0.03330254]
[1739364108074,13.97598686,196.92,196.84,5.0798]
[1739364108273,5.079,196.88,196.84,5.0798]
[1739364109382,5.1119558,196.88,196.84,5.11370597]
[1739364109583,5.1119558,196.88,196.85,5.0797]
[1739364111886,0.0329558,196.88,196.86,5.0793]
[1739364112082,0.0329558,196.88,196.84,0.03390597]
[1739364112695,0.0329558,196.88,196.87,5.0792]
[1739364112884,13.97141195,196.88,196.84,0.03390597]
[1739364114290,5.0793,196.87,196.84,0.03390597]
[1739364115992,13.93845615,196.85,196.7,13.93845615]
[1739364116188,13.93845615,196.81,196.7,13.93845615]
[1739364116690,13.93845615,196.84,196.7,13.93845615]
[1739364116889,13.93845615,196.84,196.73,13.93845615]
[1739364117085,0.03889,196.8,196.77,0.03336266]
[1739364117686,0.03889,196.8,196.77,5.11516266]
[1739364118993,0.03889,196.8,196.78,5.0814]
[1739364119384,19.01755615,196.88,196.81,5.0807]
[1739364119692,5.0791,196.88,196.81,5.0807]
[1739364119892,5.0791,196.88,196.79,13.93845615]
[1739364120591,0.03390581,196.85,196.82,0.03200523]
[1739364120792,0.03390581,196.85,196.83,5.0802]
[1739364121189,0.03390581,196.85,196.84,5.08]
[1739364122291,0.03390581,196.85,196.82,5.11230523]
[1739364122496,0.03390581,196.85,196.82,0.03200523]
[1739364123992,5.0802,196.84,196.82,0.03200523]
[1739364124195,13.97236196,196.85,196.82,0.03200523]
[1739364125095,5.08,196.84,196.82,0.03200523]
[1739364125303,13.97236196,196.85,196.82,0.03200523]
[1739364125304,0.03390581,196.85,196.82,0.03200523]
[1739364126090,0.03390581,196.85,196.82,5.11250523]
[1739364126798,0.03390581,196.85,196.83,5.0802]
[1739364126995,0.03390581,196.85,196.82,0.03200523]
[1739364127400,5.0781,196.92,196.82,13.97046138]
[1739364128804,0.03276657,196.89,196.82,13.97046138]
[1739364129100,0.03276657,196.89,196.87,5.0792]
[1739364131608,0.03276657,196.89,196.86,0.03347071]
[1739364132401,5.0791,196.88,196.86,0.03347071]
[1739364135502,0.03276657,196.89,196.86,0.03347071]
[1739364136210,0.03276657,196.89,196.87,5.079]
[1739364136411,0.03276657,196.89,196.86,0.03347071]
[1739364136804,0.03276657,196.89,196.88,5.079]
[1739364139100,13.93845615,196.97,196.86,0.03347071]
[1739364139510,13.93845615,197.0,196.88,13.93845615]
[1739364139712,13.93845615,197.0,196.89,1.4735]
[1739364140208,0.03435019,196.96,196.93,0.03534869]
[1739364141112,0.03435019,196.96,196.94,5.0772]
[1739364142811,0.03435019,196.96,196.95,5.0772]
[1739364145018,0.03435019,196.96,196.95,13.98827852]
[1739364145213,8.91107852,197.02,196.95,8.91107852]
[1739364145416,8.91107852,197.04,196.97,8.91107852]
[1739364145718,1.4884,197.06,196.95,13.91732391]
[1739364146019,5.0747,197.05,196.95,13.91732391]
[1739364146516,0.0344229,197.02,196.98,0.03544626]
[1739364147114,0.0344229,197.02,197.0,5.0757]
[1739364149217,0.0344229,197.02,196.98,0.03544626]
[1739364149520,0.0344229,197.02,197.01,5.0756]
[1739364153121,2.29e-05,197.02,197.01,5.0756]
[1739364153526,2.29e-05,197.02,197.01,18.99292391]
[1739364165833,2.29e-05,197.02,197.01,13.97712716]
[1739364168043,10.43302716,197.11,197.08,5.0737]
[1739364168339,1.5315,197.11,197.08,5.0737]
[1739364168736,6.6046,197.11,197.08,5.0737]
[1739364169341,15.53914953,197.11,197.08,5.11020672]
[1739364169639,10.46604953,197.11,197.08,0.03650672]
[1739364169842,5.0734,197.1,197.08,0.03650672]
[1739364170844,8.90152716,197.09,197.04,5.0746]
[1739364171838,5.0741,197.08,197.04,5.0746]
[1739364172041,5.0741,197.08,197.05,0.0371179]
[1739364172832,5.0741,197.07,197.05,0.0371179]
[1739364173036,8.90152716,197.07,196.98,8.90152716]
[1739364173244,8.90152716,197.04,196.98,8.90152716]
[1739364174241,0.03239454,197.03,197.0,8.90152716]
[1739364174543,8.90152716,197.08,197.0,8.90152716]
[1739364174742,8.90152716,197.08,197.0,8.93465527]
[1739364174743,0.0340356,197.03,197.0,8.93465527]
[1739364174934,0.0340356,197.03,197.02,13.97682716]
[1739364179741,0.0340356,197.03,197.0,5.10872811]